fUSD/lending_fUSD_20260610
["ID","MTS","AMOUNT","RATE_DAILY","PERIOD"]
[424645037,1781027449000,-353.35582789,0.00028941,2]
[424645036,1781027449000,-402.54006732,0.00028941,2]
[424645032,1781027449000,-336.84939009,0.00028941,2]
[424645034,1781027449000,-361.99722772,0.00028941,2]
[424645035,1781027449000,-189.44992842,0.00028941,2]
[424645048,1781027449000,-421.43651313,0.0002896,2]
[424645038,1781027449000,-241.11299589,0.00028941,2]
[424645039,1781027449000,-366.60914388,0.00028941,2]
[424645040,1781027449000,-447.78248466,0.00028941,2]
[424645041,1781027449000,-340.49731371,0.00028941,2]
[424645042,1781027449000,-219.26265665,0.00028941,2]
[424645045,1781027449000,-2249.82,0.00028947,7]
[424645043,1781027449000,-169.83106825,0.00028941,2]
[424645046,1781027449000,-362.58262656,0.0002896,2]
[424645047,1781027449000,-330.93414969,0.0002896,2]
[424645044,1781027449000,-2244.85,0.00028947,7]
[424645049,1781027449000,-402.93189417,0.0002896,2]
[424645050,1781027449000,-683.62860818,0.0002896,2]
[424645051,1781027449000,-794.12070574,0.0002896,2]
[424645055,1781027449000,-3157.41,0.00028964,2]
[424645056,1781027449000,-11491.22,0.00028964,2]
[424645058,1781027449000,-4617.73,0.00028964,2]
[424645052,1781027449000,-432.93647342,0.0002896,2]
[424645054,1781027449000,-4651.41,0.00028964,2]
[424644999,1781027449000,-500.0,0.00028855,2]
[424645057,1781027449000,-3147.51,0.00028964,2]
[424645030,1781027449000,-321.21328244,0.00028941,2]
[424645031,1781027449000,-345.52002128,0.00028941,2]
[424645053,1781027449000,-317.24073182,0.0002896,2]
[424645033,1781027449000,-385.92054206,0.00028941,2]
[424645027,1781027449000,-368.25779716,0.00028941,2]
[424644997,1781027449000,-2244.85,0.00028852,7]
[424644998,1781027449000,-2249.82,0.00028852,7]
[424645000,1781027449000,-150.0,0.00028855,2]
[424645015,1781027449000,-2249.82,0.00028915,2]
[424645005,1781027449000,-33271.7254,0.000289,2]
[424645011,1781027449000,-200.0,0.000289,2]
[424645004,1781027449000,-2249.82,0.00028883,30]
[424645008,1781027449000,-4949.4401,0.000289,2]
[424645014,1781027449000,-2244.85,0.00028915,2]
[424645007,1781027449000,-2000.0,0.000289,2]
[424645009,1781027449000,-10307.5733,0.000289,2]
[424645006,1781027449000,-2579.8488,0.000289,2]
[424645012,1781027449000,-200.0,0.000289,2]
[424644995,1781027449000,-2244.85,0.0002882,2]
[424645010,1781027449000,-1200.0,0.000289,10]
[424645013,1781027449000,-171.3583486,0.00028908,16]
[424645025,1781027449000,-359.42789434,0.00028941,2]
[424645024,1781027449000,-371.62826555,0.00028941,2]
[424645026,1781027449000,-490.34322301,0.00028941,2]
[424645023,1781027449000,-379.58216806,0.00028941,2]
[424645022,1781027449000,-302.94427499,0.00028941,2]
[424645029,1781027449000,-397.23037677,0.00028941,2]
[424645020,1781027449000,-367.49019618,0.00028941,2]
[424645019,1781027449000,-332.36431892,0.00028941,2]
[424645017,1781027449000,-2024.08696035,0.00028916,4]
[424645018,1781027449000,-3328.71680134,0.00028916,4]
[424645016,1781027449000,-6465.80478824,0.00028916,4]
[424645021,1781027449000,-398.27021044,0.00028941,2]
[424645098,1781027450000,-408.8187893,0.00028999,2]
[424645097,1781027450000,-312.97348886,0.00028999,2]
[424645100,1781027450000,-301.10934188,0.00028999,2]
[424645096,1781027450000,-198.21724785,0.00028999,2]
[424645093,1781027450000,-221.81559523,0.00028999,2]
[424645091,1781027450000,-313.76408649,0.00028999,2]
[424645094,1781027450000,-311.96119791,0.00028999,2]
[424645087,1781027450000,-206.53983365,0.00028999,2]
[424645092,1781027450000,-406.90841673,0.00028999,2]
[424645099,1781027450000,-456.82549214,0.00028999,2]
[424645089,1781027450000,-423.0350187,0.00028999,2]
[424645090,1781027450000,-204.54620729,0.00028999,2]
[424645102,1781027450000,-500.0,0.00029,2]
[424645101,1781027450000,-316.77738687,0.00028999,2]
[424645103,1781027450000,-500.0,0.00029,2]
[424645104,1781027450000,-500.0,0.00029,2]
[424645106,1781027450000,-500.0,0.00029,2]
[424645105,1781027450000,-500.0,0.00029,2]
[424645109,1781027450000,-500.0,0.00029,2]
[424645117,1781027450000,-200.0,0.00029,2]
[424645108,1781027450000,-500.0,0.00029,2]
[424645110,1781027450000,-500.0,0.00029,2]
[424645114,1781027450000,-200.0,0.00029,2]
[424645113,1781027450000,-200.0,0.00029,2]
[424645088,1781027450000,-161.55338496,0.00028999,2]
[424645107,1781027450000,-500.0,0.00029,2]
[424645084,1781027450000,-307.92311635,0.00028999,2]
[424645081,1781027450000,-376.74036703,0.00028999,2]
[424645086,1781027450000,-305.11228814,0.00028999,2]
[424645059,1781027450000,-11455.16,0.00028964,2]
[424645061,1781027450000,-311.31299407,0.0002897,2]
[424645062,1781027450000,-436.49734419,0.0002897,2]
[424645060,1781027450000,-370.54163099,0.0002897,2]
[424645065,1781027450000,-364.69340711,0.0002897,2]
[424645069,1781027450000,-182.600014,0.00028971,5]
[424645064,1781027450000,-417.50218907,0.0002897,2]
[424645068,1781027450000,-179.97120458,0.00028971,2]
[424645067,1781027450000,-177.49473738,0.0002897,2]
[424645063,1781027450000,-206.74161396,0.0002897,2]
[424645066,1781027450000,-369.07051243,0.0002897,2]
[424645071,1781027450000,-2249.82,0.00028979,30]
[424645070,1781027450000,-2244.85,0.00028979,30]
[424645083,1781027450000,-188.41258152,0.00028999,2]
[424645073,1781027450000,-910.48183073,0.00028999,2]
[424645082,1781027450000,-244.92839459,0.00028999,2]
[424645074,1781027450000,-398.00712697,0.00028999,2]
[424645078,1781027450000,-429.368038,0.00028999,2]
[424645080,1781027450000,-352.59422306,0.00028999,2]
[424645072,1781027450000,-304.50117863,0.00028999,2]
[424645076,1781027450000,-346.27262281,0.00028999,2]
[424645079,1781027450000,-152.58806365,0.00028999,2]
[424645075,1781027450000,-834.42506107,0.00028999,2]
[424645077,1781027450000,-302.71218742,0.00028999,2]
[424645085,1781027450000,-190.08407119,0.00028999,2]
[424645095,1781027450000,-393.62453578,0.00028999,2]
[424645112,1781027450000,-500.0,0.00029,2]
[424645116,1781027450000,-200.0,0.00029,2]
[424645111,1781027450000,-500.0,0.00029,2]
[424645148,1781027450000,-500.0,0.00029,2]
[424645152,1781027450000,-1006.66,0.00029,7]
[424645151,1781027450000,-230.0,0.00029,2]
[424645150,1781027450000,-316.6,0.00029,2]
[424645149,1781027450000,-500.0,0.00029,2]
[424645155,1781027450000,-4874.29264713,0.00029,2]
[424645153,1781027450000,-10230.44,0.00029,14]
[424645157,1781027450000,-227.18927055,0.00029,2]
[424645156,1781027450000,-165.25473091,0.00029,2]
[424645160,1781027450000,-3054.0,0.00029,7]
[424645158,1781027450000,-659.66411633,0.00029,2]
[424645161,1781027450000,-150.0,0.00029,2]
[424645159,1781027450000,-2000.0,0.00029,2]
[424645163,1781027450000,-150.0,0.00029,2]
[424645162,1781027450000,-150.0,0.00029,2]
[424645168,1781027450000,-527.30188811,0.00029,2]
[424645164,1781027450000,-150.0,0.00029,2]
[424645165,1781027450000,-150.0,0.00029,2]
[424645166,1781027450000,-150.0,0.00029,2]
[424645167,1781027450000,-150.0,0.00029,2]
[424645170,1781027450000,-158.0,0.00029,4]
[424645169,1781027450000,-168.0,0.00029,4]
[424645171,1781027450000,-158.0,0.00029,4]
[424645172,1781027450000,-158.0,0.00029,4]
[424645115,1781027450000,-200.0,0.00029,2]
[424645147,1781027450000,-500.0,0.00029,2]
[424645145,1781027450000,-500.0,0.00029,2]
[424645154,1781027450000,-17891.31,0.00029,2]
[424645142,1781027450000,-500.0,0.00029,2]
[424645146,1781027450000,-500.0,0.00029,2]
[424645120,1781027450000,-200.0,0.00029,2]
[424645130,1781027450000,-500.0,0.00029,2]
[424645121,1781027450000,-200.0,0.00029,2]
[424645125,1781027450000,-500.0,0.00029,2]
[424645119,1781027450000,-200.0,0.00029,2]
[424645122,1781027450000,-200.0,0.00029,2]
[424645124,1781027450000,-200.0,0.00029,2]
[424645123,1781027450000,-500.0,0.00029,2]
[424645126,1781027450000,-500.0,0.00029,2]
[424645127,1781027450000,-200.0,0.00029,2]
[424645129,1781027450000,-500.0,0.00029,2]
[424645128,1781027450000,-500.0,0.00029,2]
[424645118,1781027450000,-200.0,0.00029,2]
[424645139,1781027450000,-500.0,0.00029,2]
[424645133,1781027450000,-200.0,0.00029,2]
[424645143,1781027450000,-500.0,0.00029,2]
[424645137,1781027450000,-215.27,0.00029,2]
[424645138,1781027450000,-500.0,0.00029,2]
[424645141,1781027450000,-500.0,0.00029,2]
[424645131,1781027450000,-200.0,0.00029,2]
[424645144,1781027450000,-500.0,0.00029,2]
[424645136,1781027450000,-500.0,0.00029,2]
[424645132,1781027450000,-500.0,0.00029,2]
[424645135,1781027450000,-200.0,0.00029,2]
[424645134,1781027450000,-500.0,0.00029,2]
[424645140,1781027450000,-500.0,0.00029,2]
[424645228,1781027451000,-4617.73,0.00029299,7]
[424645211,1781027451000,-1272.11,0.00029151,7]
[424645210,1781027451000,-1084.5,0.00029151,7]
[424645206,1781027451000,-4617.73,0.00029132,30]
[424645207,1781027451000,-11455.16,0.00029132,30]
[424645208,1781027451000,-2244.85,0.00029137,7]
[424645205,1781027451000,-3147.51,0.00029132,30]
[424645202,1781027451000,-4651.41,0.00029132,30]
[424645204,1781027451000,-11491.22,0.00029132,30]
[424645209,1781027451000,-2249.82,0.00029137,7]
[424645218,1781027451000,-2249.98,0.00029232,7]
[424645215,1781027451000,-2249.82,0.00029201,2]
[424645222,1781027451000,-854.0,0.00029273,4]
[424645212,1781027451000,-2244.85,0.00029169,30]
[424645214,1781027451000,-2244.85,0.00029201,2]
[424645217,1781027451000,-2244.89,0.00029232,7]
[424645213,1781027451000,-2249.82,0.00029169,30]
[424645230,1781027451000,-3000.0,0.000293,3]
[424645221,1781027451000,-3328.71680134,0.00029273,4]
[424645223,1781027451000,-151.0,0.00029296,7]
[424645220,1781027451000,-2024.08696035,0.00029273,4]
[424645219,1781027451000,-6465.80478824,0.00029273,4]
[424645225,1781027451000,-3157.41,0.00029299,7]
[424645224,1781027451000,-4651.41,0.00029299,7]
[424645203,1781027451000,-3157.41,0.00029132,30]
[424645216,1781027451000,-1000.0,0.00029208,7]
[424645200,1781027451000,-150.0,0.00029106,7]
[424645174,1781027451000,-158.0,0.00029,4]
[424645196,1781027451000,-350.0,0.0002909,8]
[424645173,1781027451000,-158.0,0.00029,4]
[424645175,1781027451000,-158.0,0.00029,4]
[424645177,1781027451000,-158.0,0.00029,4]
[424645178,1781027451000,-158.0,0.00029,4]
[424645179,1781027451000,-158.0,0.00029,4]
[424645176,1781027451000,-158.0,0.00029,4]
[424645185,1781027451000,-157.0,0.00029,4]
[424645184,1781027451000,-157.0,0.00029,4]
[424645181,1781027451000,-157.0,0.00029,4]
[424645183,1781027451000,-157.0,0.00029,4]
[424645182,1781027451000,-157.0,0.00029,4]
[424645180,1781027451000,-161.0,0.00029,4]
[424645186,1781027451000,-157.0,0.00029,4]
[424645190,1781027451000,-1000.0,0.00029017,7]
[424645187,1781027451000,-160.0,0.00029,30]
[424645192,1781027451000,-2244.85,0.00029042,7]
[424645194,1781027451000,-2244.85,0.00029074,30]
[424645195,1781027451000,-2249.82,0.00029074,30]
[424645193,1781027451000,-2249.82,0.00029042,7]
[424645188,1781027451000,-2244.85,0.0002901,2]
[424645189,1781027451000,-2249.82,0.0002901,2]
[424645191,1781027451000,-166.6875,0.00029041,2]
[424645199,1781027451000,-2249.82,0.00029105,2]
[424645198,1781027451000,-2244.85,0.00029105,2]
[424645197,1781027451000,-1121.71,0.000291,7]
[424645201,1781027451000,-401.81411277,0.0002913,20]
[424645227,1781027451000,-3147.51,0.00029299,7]
[424645248,1781027451000,-1006.66,0.000294,7]
[424645229,1781027451000,-11455.16,0.00029299,7]
[424645265,1781027451000,-151.0,0.00029483,7]
[424645255,1781027451000,-754441.9774059,0.00029483,2]
[424645263,1781027451000,-151.0,0.00029483,7]
[424645264,1781027451000,-151.0,0.00029483,7]
[424645267,1781027451000,-151.0,0.00029483,7]
[424645278,1781027451000,-151.0,0.00029483,30]
[424645269,1781027451000,-388.607731,0.00029483,7]
[424645277,1781027451000,-151.0,0.00029483,30]
[424645268,1781027451000,-388.607731,0.00029483,7]
[424645266,1781027451000,-388.607731,0.00029483,7]
[424645270,1781027451000,-388.607731,0.00029483,7]
[424645271,1781027451000,-151.0,0.00029483,30]
[424645272,1781027451000,-151.0,0.00029483,30]
[424645273,1781027451000,-151.0,0.00029483,30]
[424645274,1781027451000,-151.0,0.00029483,30]
[424645276,1781027451000,-151.0,0.00029483,30]
[424645275,1781027451000,-151.0,0.00029483,30]
[424645279,1781027451000,-151.0,0.00029483,30]
[424645282,1781027451000,-151.0,0.00029483,7]
[424645283,1781027451000,-151.0,0.00029483,7]
[424645281,1781027451000,-151.0,0.00029483,30]
[424645286,1781027451000,-151.0,0.00029483,7]
[424645285,1781027451000,-151.0,0.00029483,7]
[424645284,1781027451000,-151.0,0.00029483,7]
[424645226,1781027451000,-11491.22,0.00029299,7]
[424645261,1781027451000,-151.0,0.00029483,7]
[424645259,1781027451000,-72025.5570719,0.00029483,2]
[424645280,1781027451000,-151.0,0.00029483,30]
[424645256,1781027451000,-18522.6573328,0.00029483,2]
[424645260,1781027451000,-151.0,0.00029483,7]
[424645238,1781027451000,-311.0,0.00029304,30]
[424645240,1781027451000,-519.0,0.00029334,30]
[424645241,1781027451000,-565.0,0.00029334,30]
[424645232,1781027451000,-1943.0,0.00029304,30]
[424645242,1781027451000,-513.0,0.00029334,30]
[424645234,1781027451000,-572.0,0.00029304,30]
[424645236,1781027451000,-617.0,0.00029304,30]
[424645237,1781027451000,-1157.0,0.00029304,30]
[424645231,1781027451000,-527.0,0.00029304,30]
[424645235,1781027451000,-2909.0,0.00029304,30]
[424645233,1781027451000,-727.0,0.00029304,30]
[424645243,1781027451000,-1775.0,0.00029334,30]
[424645239,1781027451000,-179.97120458,0.00029319,2]
[424645246,1781027451000,-494.27,0.0002938,2]
[424645262,1781027451000,-151.0,0.00029483,7]
[424645247,1781027451000,-150.0,0.00029386,2]
[424645258,1781027451000,-599845.3467088,0.00029483,2]
[424645257,1781027451000,-6174.219111,0.00029483,2]
[424645253,1781027451000,-1000.0,0.00029439,7]
[424645244,1781027451000,-3786.0,0.00029334,30]
[424645254,1781027451000,-500.0,0.00029449,2]
[424645249,1781027451000,-10230.44,0.000294,14]
[424645250,1781027451000,-1000.0,0.00029415,7]
[424645252,1781027451000,-2000.0,0.00029435,7]
[424645245,1781027451000,-698.0,0.00029334,30]
[424645251,1781027451000,-350.0,0.00029433,7]
[424645306,1781027452000,-5257.394979,0.00029483,7]
[424645314,1781027452000,-1121.71,0.000295,7]
[424645313,1781027452000,-223.960333,0.00029483,7]
[424645309,1781027452000,-223.960333,0.00029483,7]
[424645311,1781027452000,-223.960333,0.00029483,7]
[424645310,1781027452000,-151.0,0.00029483,7]
[424645312,1781027452000,-223.960333,0.00029483,7]
[424645324,1781027452000,-1500.0,0.00029534,15]
[424645318,1781027452000,-1500.0,0.00029534,15]
[424645319,1781027452000,-1500.0,0.00029534,15]
[424645316,1781027452000,-1500.0,0.00029534,15]
[424645317,1781027452000,-1500.0,0.00029534,15]
[424645315,1781027452000,-1500.0,0.00029534,15]
[424645322,1781027452000,-1500.0,0.00029534,15]
[424645321,1781027452000,-1500.0,0.00029534,15]
[424645308,1781027452000,-261.737233,0.00029483,7]
[424645320,1781027452000,-1500.0,0.00029534,15]
[424645323,1781027452000,-1500.0,0.00029534,15]
[424645304,1781027452000,-5257.394979,0.00029483,7]
[424645298,1781027452000,-768.98023,0.00029483,7]
[424645307,1781027452000,-5257.394979,0.00029483,7]
[424645326,1781027452000,-150.0,0.00029534,2]
[424645290,1781027452000,-403.018373,0.00029483,7]
[424645289,1781027452000,-403.018373,0.00029483,7]
[424645287,1781027452000,-151.0,0.00029483,7]
[424645288,1781027452000,-403.018373,0.00029483,7]
[424645299,1781027452000,-774.886158,0.00029483,7]
[424645300,1781027452000,-768.98023,0.00029483,7]
[424645291,1781027452000,-403.018373,0.00029483,7]
[424645301,1781027452000,-774.886158,0.00029483,7]
[424645302,1781027452000,-768.98023,0.00029483,7]
[424645296,1781027452000,-768.98023,0.00029483,7]
[424645292,1781027452000,-489.961075,0.00029483,7]
[424645297,1781027452000,-774.886158,0.00029483,7]
[424645293,1781027452000,-489.961075,0.00029483,7]
[424645295,1781027452000,-489.961075,0.00029483,7]
[424645294,1781027452000,-489.961075,0.00029483,7]
[424645303,1781027452000,-774.886158,0.00029483,7]
[424645305,1781027452000,-5257.394979,0.00029483,7]
[424645325,1781027452000,-1814.476479,0.00029534,15]
[424645346,1781027452000,-266.15621669,0.00029781,2]
[424645329,1781027452000,-396.0,0.00029558,2]
[424645350,1781027452000,-10230.44,0.000298,14]
[424645352,1781027452000,-498.54647838,0.0002981,2]
[424645354,1781027452000,-597.40531565,0.0002981,2]
[424645327,1781027452000,-200.0,0.0002954,2]
[424645355,1781027452000,-454.41641249,0.0002981,2]
[424645356,1781027452000,-569.37325209,0.0002981,2]
[424645360,1781027452000,-539.14184151,0.0002981,2]
[424645358,1781027452000,-557.44239833,0.0002981,2]
[424645359,1781027452000,-206.16331488,0.0002981,2]
[424645357,1781027452000,-243.71772196,0.0002981,2]
[424645362,1781027452000,-242.39762518,0.0002981,2]
[424645361,1781027452000,-735.51483452,0.0002981,2]
[424645363,1781027452000,-552.38669574,0.0002981,2]
[424645367,1781027452000,-518.28003192,0.0002981,2]
[424645366,1781027452000,-481.81992366,0.0002981,2]
[424645365,1781027452000,-595.84556516,0.0002981,2]
[424645364,1781027452000,-624.35755836,0.0002981,2]
[424645351,1781027452000,-854.0,0.00029807,4]
[424645345,1781027452000,-2054.13138052,0.00029781,2]
[424645353,1781027452000,-551.23529427,0.0002981,2]
[424645342,1781027452000,-350.0,0.00029726,14]
[424645328,1781027452000,-8092.0,0.00029558,10]
[424645330,1781027452000,-565.0,0.00029576,7]
[424645331,1781027452000,-166.6875,0.00029589,2]
[424645335,1781027452000,-2024.08696035,0.0002963,4]
[424645336,1781027452000,-3328.71680134,0.0002963,4]
[424645332,1781027452000,-237316.51759758,0.0002961,2]
[424645334,1781027452000,-6465.80478824,0.0002963,4]
[424645337,1781027452000,-942.73314658,0.00029648,2]
[424645333,1781027452000,-644.03,0.00029611,2]
[424645339,1781027452000,-350.0,0.00029726,14]
[424645341,1781027452000,-350.0,0.00029726,14]
[424645340,1781027452000,-350.0,0.00029726,14]
[424645347,1781027452000,-2714.31966893,0.00029781,2]
[424645349,1781027452000,-1006.66,0.000298,7]
[424645344,1781027452000,-1000.0,0.00029767,7]
[424645343,1781027452000,-379.84,0.00029726,14]
[424645348,1781027452000,-964.99571349,0.00029781,2]
[424645338,1781027452000,-179.97120458,0.00029666,2]
[424645375,1781027453000,-619.75957813,0.0002981,2]
[424645377,1781027453000,-530.03374184,0.0002981,2]
[424645380,1781027453000,-671.67372699,0.0002981,2]
[424645376,1781027453000,-603.81010098,0.0002981,2]
[424645374,1781027453000,-542.99584159,0.0002981,2]
[424645370,1781027453000,-578.88081309,0.0002981,2]
[424645372,1781027453000,-378.89985683,0.0002981,2]
[424645368,1781027453000,-505.27408514,0.0002981,2]
[424645371,1781027453000,-533.20974494,0.0002981,2]
[424645369,1781027453000,-592.5469032,0.0002981,2]
[424645379,1781027453000,-482.22599178,0.0002981,2]
[424645373,1781027453000,-486.66786718,0.0002981,2]
[424645378,1781027453000,-549.91371582,0.0002981,2]
[424645386,1781027453000,-1025.44291226,0.00029829,2]
[424645383,1781027453000,-339.6621365,0.0002981,2]
[424645381,1781027453000,-510.74597057,0.0002981,2]
[424645393,1781027453000,-2000.0,0.0002983,2]
[424645391,1781027453000,-2000.0,0.0002983,2]
[424645387,1781027453000,-1191.18105861,0.00029829,2]
[424645390,1781027453000,-2000.0,0.0002983,2]
[424645392,1781027453000,-2000.0,0.0002983,2]
[424645389,1781027453000,-475.86109774,0.00029829,2]
[424645385,1781027453000,-1000.0,0.00029822,7]
[424645394,1781027453000,-100.75732393,0.00029839,2]
[424645384,1781027453000,-382.0,0.00029812,2]
[424645382,1781027453000,-438.52531329,0.0002981,2]
[424645388,1781027453000,-649.40471013,0.00029829,2]
[424645401,1781027454000,-292.5968739,0.00029839,2]
[424645395,1781027454000,-455.05512256,0.00029839,2]
[424645398,1781027454000,-71.84824722,0.00029839,2]
[424645402,1781027454000,-236.24773457,0.00029839,2]
[424645397,1781027454000,-413.48322793,0.00029839,2]
[424645399,1781027454000,-582.89776907,0.00029839,2]
[424645400,1781027454000,-333.65640971,0.00029839,2]
[424645396,1781027454000,-466.9694911,0.00029839,2]
[424645404,1781027454000,-553.60576864,0.00029839,2]
[424645403,1781027454000,-310.79237609,0.00029839,2]
[424645405,1781027454000,-292.25780944,0.00029839,2]
[424645406,1781027454000,-62.73166533,0.00029839,2]
[424645407,1781027454000,-465.84889493,0.00029849,7]
[424645409,1781027454000,-160.0,0.00016,3]
[424645408,1781027454000,-215.89329178,8.016e-05,2]
[424645411,1781027454000,-44.9547133,0.00028,10]
[424645410,1781027454000,-160.0,0.00025,7]
[424645420,1781027456000,-200.0,0.00027956,2]
[424645418,1781027456000,-500.0,0.00027241,2]
[424645414,1781027456000,-200.0,0.00024865,2]
[424645417,1781027456000,-200.0,0.00027183,2]
[424645416,1781027456000,-200.0,0.0002641,2]
[424645419,1781027456000,-1214.0,0.00027293,2]
[424645421,1781027456000,-115.0452867,0.00028,10]
[424645413,1781027456000,-1214.0,0.00024293,2]
[424645412,1781027456000,-200.0,0.00024092,2]
[424645415,1781027456000,-200.0,0.00025638,2]
[424645424,1781027456000,-160.0,0.00029,7]
[424645428,1781027456000,-348.89639177,0.00029863,2]
[424645423,1781027456000,-200.0,0.00028729,2]
[424645422,1781027456000,-160.0,0.00028,7]
[424645425,1781027456000,-200.0,0.00029501,2]
[424645427,1781027456000,-651.10360823,0.00029863,2]
[424645430,1781027456000,-998.45360823,0.00029863,2]
[424645429,1781027456000,-1000.0,0.00029863,2]
[424645432,1781027456000,-300.0,0.00024221,2]
[424645431,1781027456000,-1596.8334,0.00024221,2]
[424645433,1781027456000,-315.83004462,0.00024221,2]
[424645434,1781027456000,-2787.32655538,0.00024221,2]
[424645435,1781027456000,-4313.74541569,0.00027397,10]
[424645426,1781027456000,-534.15110507,0.00029849,7]
[424645437,1781027457000,1600.0,0.00029725,120]
[424645436,1781027457000,1600.0,0.00026422,120]
[424645438,1781027470000,2000.0,0.00028384,120]
[424645439,1781027500000,211.8113,6.6e-05,2]
[424645440,1781027602000,500.0,0.00029768,120]
[424645442,1781027706000,172.0,0.00029336,120]
[424645449,1781027910000,1000.0,0.0003,120]
[424645451,1781027917000,-150.0,6.85e-05,2]
[424645450,1781027917000,-400.0,6.8e-05,2]
[424645452,1781027925000,1000.0,0.000301,120]
[424645453,1781027955000,-150.0,6.9e-05,2]
[424645454,1781027975000,1000.0,0.000301,120]
[424645455,1781027977000,1000.0,0.000301,120]
[424645456,1781027978000,1000.0,0.000301,120]
[424645458,1781027979000,1000.0,0.000301,120]
[424645460,1781027980000,1000.0,0.000301,120]
[424645459,1781027980000,1000.0,0.000301,120]
[424645461,1781027981000,1000.0,0.000301,120]
[424645463,1781027981000,1000.0,0.000301,120]
[424645462,1781027981000,1000.0,0.000301,120]
[424645464,1781027982000,1000.0,0.000301,120]
[424645466,1781027982000,1000.0,0.000301,120]
[424645465,1781027982000,1000.0,0.000301,120]
[424645467,1781027983000,1000.0,0.000301,120]
[424645474,1781027997000,369.2,0.000301,120]
[424645475,1781028005000,1000.0,0.0003013,120]
[424645477,1781028009000,1000.0,0.0003013,120]
[424645476,1781028009000,1000.0,0.0003013,120]
[424645480,1781028213000,269.14,0.00029,120]
[424645481,1781028220000,500.0,0.00029,120]
[424645484,1781028261000,660.77,0.00030082,120]
[424645485,1781028297000,150.0,0.00011233,120]
[424645488,1781028515000,-300.0,6.7e-05,2]
[424645489,1781028515000,-250.0,6.713e-05,2]
[424645487,1781028515000,-600.0,6.7e-05,2]
[424645490,1781028515000,-193.0,6.725e-05,2]
[424645491,1781028515000,-150.0,6.75e-05,2]
[424645492,1781028515000,-250.0,6.775e-05,2]
[424645493,1781028515000,-1200.0,6.8e-05,2]
[424645496,1781028515000,-1584.10408765,6.9e-05,2]
[424645497,1781028515000,-900.0,6.9e-05,2]
[424645498,1781028515000,-215.89329178,6.952e-05,2]
[424645499,1781028515000,-379.47807615,7e-05,2]
[424645494,1781028515000,-600.0,6.8e-05,2]
[424645495,1781028515000,-215.89591235,6.9e-05,2]
[424645503,1781028540000,-2192.83673984,7.051e-05,2]
[424645501,1781028540000,-1200.0,7e-05,2]
[424645502,1781028540000,-675.14141586,7.051e-05,2]
[424645500,1781028540000,-2020.52192385,7e-05,2]
[424645505,1781028564000,-150.0,7.05e-05,2]
[424645507,1781028564000,-3668.16772605,7.051e-05,2]
[424645506,1781028564000,-3567.4333413,7.051e-05,2]
[424645504,1781028564000,-300.0,7.05e-05,2]
[424645508,1781028589000,-4171.14536265,7.051e-05,2]
[424645509,1781028589000,-1883.63641522,7.051e-05,2]
[424645510,1781028596000,1000.0,0.0003013,120]
[424645511,1781028614000,500.0,0.0003013,120]
[424645513,1781028615000,-4292.2409982,7.051e-05,2]
[424645512,1781028615000,-2772.89006212,7.051e-05,2]
[424645518,1781028632000,-607.56498033,7.051e-05,2]
[424645519,1781028632000,-820.01474309,7.051e-05,2]
[424645520,1781028632000,-48287.86431377,7.051e-05,2]
[424645523,1781028632000,-11671.05318492,7.051e-05,2]
[424645521,1781028632000,-2060.33272966,7.051e-05,2]